bitfinex/quotes_SOLUSD_20250108
["timestamp","ask_amount","ask_price","bid_price","bid_amount"]
[1736361270868,20.0,195.36,195.26,25.1472831]
[1736361271577,20.0,195.36,195.24,13.57260978]
[1736361271578,20.0,195.36,195.25,25.1472831]
[1736361271755,20.0,195.36,195.26,25.1472831]
[1736361272963,20.45603271,195.38,195.27,25.1472831]
[1736361273288,0.45603271,195.4,195.28,25.1472831]
[1736361273789,20.0,195.38,195.27,45.1472831]
[1736361273991,20.0,195.38,195.29,25.1472831]
[1736361274159,0.45603271,195.4,195.29,25.1472831]
[1736361276075,7.2673,195.41,195.33,25.1472831]
[1736361276895,20.0,195.43,195.35,25.1472831]
[1736361277390,20.0,195.43,195.34,25.1472831]
[1736361277754,0.45603271,195.42,195.3,25.1472831]
[1736361278082,20.0,195.39,195.25,28.4472831]
[1736361278305,7.2673,195.37,195.23,25.1472831]
[1736361278616,20.0,195.34,195.22,25.1472831]
[1736361278775,20.0,195.34,195.23,25.1472831]
[1736361279180,0.45603271,195.36,195.26,25.1472831]
[1736361279408,7.2673,195.37,195.27,23.776884]
[1736361280482,0.45603271,195.36,195.27,23.776884]
[1736361280780,0.45603271,195.36,195.26,23.776884]
[1736361281508,7.92756591,195.31,195.27,23.776884]
[1736361281722,7.92756591,195.31,195.28,25.1472831]
[1736361281883,7.92756591,195.31,195.29,25.1472831]
[1736361282083,7.92756591,195.35,195.28,25.1472831]
[1736361282312,7.92756591,195.35,195.27,25.91510358]
[1736361282812,7.2673,195.37,195.28,25.1472831]
[1736361283002,7.2673,195.37,195.27,0.76782048]
[1736361283003,7.2673,195.41,195.31,25.1472831]
[1736361283206,7.2673,195.41,195.32,25.1472831]
[1736361283593,7.2673,195.41,195.3,25.1472831]
[1736361283800,0.45603271,195.4,195.29,0.76774476]
[1736361284005,0.45603271,195.4,195.27,25.1472831]
[1736361284221,0.45603271,195.4,195.25,25.1472831]
[1736361284222,23.776884,195.37,195.25,25.1472831]
[1736361284380,20.0,195.34,195.24,25.1472831]
[1736361284582,20.0,195.34,195.25,25.1472831]
[1736361285013,20.0,195.34,195.23,12.8054]
[1736361285014,1.2794,195.4,195.28,25.1472831]
[1736361285221,20.0,195.36,195.32,1.0]
[1736361285934,0.45603271,195.39,195.32,1.0]
[1736361286097,20.0,195.36,195.32,1.0]
[1736361289212,20.0,195.33,195.32,1.0]
[1736361289446,23.776884,195.33,195.32,1.0]
[1736361289610,43.776884,195.33,195.32,1.0]
[1736361290119,23.776884,195.29,195.17,15.76588014]
[1736361290283,24.23291671,195.29,195.17,15.76588014]
[1736361291017,24.23291671,195.29,195.16,28.57518014]
[1736361291206,24.23291671,195.29,195.17,15.76588014]
[1736361291389,20.45603271,195.29,195.17,15.76588014]
[1736361291721,20.0,195.29,195.17,15.76588014]
[1736361291889,20.45603271,195.29,195.17,25.23361034]
[1736361292089,20.45603271,195.29,195.16,38.04291034]
[1736361292407,23.776884,195.28,195.15,28.53361034]
[1736361292585,0.45603271,195.27,195.15,28.53361034]
[1736361292786,0.45603271,195.27,195.16,25.23361034]
[1736361292985,0.45603271,195.27,195.17,25.23361034]
[1736361293202,23.776884,195.28,195.17,25.23361034]
[1736361293405,23.776884,195.28,195.18,0.76819994]
[1736361294146,7.5674,195.33,195.21,25.23361034]
[1736361294309,0.45603271,195.32,195.21,25.23361034]
[1736361294503,7.5674,195.33,195.22,26.00171797]
[1736361294742,7.5674,195.33,195.24,25.23361034]
[1736361294917,7.5674,195.33,195.22,25.23361034]
[1736361294918,0.45603271,195.32,195.22,25.23361034]
[1736361295647,23.776884,195.32,195.22,25.23361034]
[1736361295837,23.776884,195.32,195.23,25.23361034]
[1736361296040,23.776884,195.32,195.22,25.23361034]
[1736361296236,24.23291671,195.32,195.21,25.23361034]
[1736361296452,20.0,195.29,195.2,25.23361034]
[1736361296751,20.0,195.29,195.19,26.00177474]
[1736361297315,20.0,195.29,195.19,0.7681644]
[1736361297516,7.5674,195.33,195.21,25.23361034]
[1736361297742,7.5674,195.33,195.22,26.00161437]
[1736361298311,7.5674,195.33,195.21,25.23361034]
[1736361298510,7.5674,195.33,195.22,25.23361034]
[1736361298928,7.5674,195.33,195.21,25.23361034]
[1736361299826,7.5674,195.33,195.2,38.80896546]
[1736361300026,0.45603271,195.32,195.2,38.80896546]
[1736361300445,7.2673,195.33,195.25,25.23361034]
[1736361300617,2.56564444,195.36,195.26,26.00150712]
[1736361300830,20.0,195.35,195.26,26.00150712]
[1736361301048,24.23291671,195.35,195.24,25.23361034]
[1736361301460,0.45603271,195.35,195.24,25.23361034]
[1736361301636,7.9324,195.38,195.27,25.23361034]
[1736361302560,7.6323,195.38,195.29,25.23361034]
[1736361302765,7.6323,195.38,195.27,25.23361034]
[1736361302974,24.23291671,195.37,195.25,0.76774704]
[1736361303136,24.23291671,195.37,195.24,43.26641034]
[1736361303137,24.23291671,195.37,195.24,16.1046]
[1736361303332,20.0,195.34,195.22,20.0]
[1736361303531,20.0,195.34,195.24,25.23361034]
[1736361303980,20.0,195.34,195.23,38.8070052]
[1736361304136,20.0,195.34,195.22,20.0]
[1736361304536,20.0,195.34,195.23,46.00160351]
[1736361305065,25.056484,195.37,195.25,25.23361034]
[1736361305264,20.0,195.35,195.24,25.23361034]
[1736361305435,20.0,195.35,195.25,46.00150988]
[1736361306340,20.0,195.35,195.25,0.76789954]
[1736361306735,7.6323,195.38,195.28,25.23361034]
[1736361306952,7.6323,195.38,195.29,0.76776069]
[1736361307161,7.6323,195.38,195.27,25.23361034]
[1736361307673,7.6323,195.38,195.26,26.00137103]
[1736361307977,7.6323,195.38,195.29,20.0]
[1736361308133,7.6323,195.38,195.3,25.23361034]
[1736361308581,2.56564444,195.41,195.31,0.76770517]
[1736361308582,20.0,195.4,195.31,0.76770517]
[1736361308782,2.56564444,195.41,195.31,26.00131551]
[1736361309077,20.0,195.4,195.29,25.23361034]
[1736361309374,20.0,195.4,195.28,0.76764482]
[1736361309375,20.0,195.4,195.28,26.00125516]
[1736361309552,24.23291671,195.39,195.28,0.76764482]
[1736361309749,20.0,195.36,195.27,3.3]
[1736361309948,0.45603271,195.35,195.22,25.23361034]
[1736361310181,0.45603271,195.35,195.22,3.3]
[1736361310567,0.45603271,195.35,195.22,28.53361034]
[1736361310754,43.776884,195.37,195.26,25.23361034]
[1736361311175,20.0,195.4,195.27,26.00144518]
[1736361311477,2.56564444,195.41,195.3,25.23361034]
[1736361311681,2.56564444,195.41,195.29,25.23361034]
[1736361312011,20.0,195.4,195.29,25.23361034]
[1736361312147,3.02167715,195.41,195.29,25.23361034]
[1736361312349,3.02167715,195.41,195.28,25.23361034]
[1736361312545,20.0,195.4,195.29,25.23361034]
[1736361312769,2.56564444,195.41,195.3,26.00133289]
[1736361312974,2.56564444,195.41,195.31,25.23361034]
[1736361313678,2.56564444,195.41,195.3,26.00133289]
[1736361314371,2.56564444,195.41,195.31,25.23361034]
[1736361314679,7.6323,195.43,195.35,25.23361034]
[1736361314884,7.6323,195.43,195.33,25.23361034]
[1736361315090,7.6323,195.43,195.31,16.0795]
[1736361315283,0.45603271,195.42,195.32,20.0]
[1736361315483,20.0,195.39,195.29,0.76762921]
[1736361315669,20.0,195.39,195.29,4.04762921]
[1736361315872,20.0,195.39,195.3,25.23361034]
[1736361316197,7.6323,195.43,195.31,0.7677047]
[1736361316488,20.0,195.4,195.3,38.03441034]
[1736361316687,23.776884,195.42,195.31,0.76767954]
[1736361316988,23.776884,195.38,195.25,27.91879784]
[1736361317192,23.776884,195.38,195.25,2.6851875]
[1736361317492,24.168284,195.38,195.27,20.0]
[1736361317676,24.168284,195.38,195.26,25.23361034]
[1736361317860,0.3914,195.38,195.27,26.00141048]
[1736361318068,0.3914,195.38,195.28,25.23361034]
[1736361318376,0.3914,195.38,195.27,26.00141048]
[1736361319407,0.45603271,195.42,195.3,25.23361034]
[1736361319569,0.45603271,195.42,195.31,25.23361034]
[1736361319773,24.23291671,195.42,195.3,25.23361034]
[1736361319974,25.51221671,195.42,195.28,25.23361034]
[1736361320180,20.0,195.39,195.27,0.76780014]
[1736361320503,20.0,195.39,195.21,8.0704]
[1736361320504,0.3914,195.33,195.2,2.0257]
[1736361320658,20.0,195.29,195.18,3.28]
[1736361320857,20.0,195.29,195.15,25.23361034]
[1736361320858,0.45603271,195.28,195.15,25.23361034]
[1736361321171,7.5287,195.27,195.13,25.23361034]
[1736361321388,24.23291671,195.26,195.15,20.0]
[1736361321568,23.776884,195.24,195.11,43.58066024]
[1736361321890,23.776884,195.24,195.14,20.0]
[1736361322073,20.0,195.24,195.13,26.00199505]
[1736361322272,20.0,195.24,195.12,25.23361034]
[1736361322273,24.23291671,195.23,195.12,25.23361034]
[1736361322597,0.45603271,195.23,195.1,25.23361034]
[1736361322778,24.23291671,195.23,195.11,26.00204567]
[1736361324164,0.45603271,195.23,195.12,45.23361034]
[1736361324392,15.45626591,195.27,195.17,25.23361034]
[1736361324571,15.45626591,195.27,195.18,25.23361034]
[1736361325091,7.5287,195.27,195.18,25.23361034]
[1736361325606,7.5287,195.27,195.2,25.23361034]
[1736361325899,7.5287,195.27,195.18,25.23361034]
[1736361326281,7.5287,195.27,195.19,0.76819311]
[1736361326599,7.5287,195.27,195.19,26.00180345]
[1736361326795,0.3914,195.33,195.22,25.23361034]
[1736361326967,0.3914,195.33,195.23,26.00160838]
[1736361327886,24.168284,195.33,195.23,26.00160838]
[1736361328781,24.168284,195.33,195.23,0.76799804]
[1736361328996,20.0,195.3,195.21,0.76801668]
[1736361329193,20.0,195.3,195.19,28.51361034]
[1736361329371,20.0,195.3,195.2,26.00173263]
[1736361329567,20.0,195.3,195.21,25.23361034]
[1736361329797,0.3914,195.33,195.23,25.23361034]
[1736361329998,0.3914,195.33,195.24,0.76795588]
[1736361330172,23.776884,195.32,195.19,29.28164709]
[1736361330696,20.0,195.3,195.19,4.04803675]
[1736361331090,20.0,195.31,195.2,25.23361034]
[1736361332110,20.0,195.31,195.19,29.28164709]
[1736361332288,44.23291671,195.3,195.19,3.28]
[1736361333886,44.23291671,195.3,195.19,28.51361034]
[1736361334566,0.3914,195.33,195.23,25.23361034]
[1736361334822,0.3914,195.33,195.25,25.23361034]
[1736361335118,15.55986591,195.34,195.24,0.76794033]
[1736361335329,0.45603271,195.33,195.22,25.23361034]
[1736361335499,7.6323,195.34,195.22,25.23361034]
[1736361335918,7.6323,195.34,195.23,26.00162342]
[1736361337311,20.0,195.31,195.21,25.23361034]
[1736361337700,20.0,195.31,195.21,26.00165436]
[1736361338219,20.0,195.31,195.21,0.76804402]
[1736361338610,20.0,195.31,195.21,26.00165436]
[1736361339738,0.45603271,195.33,195.22,25.23361034]
[1736361339946,7.6323,195.34,195.24,25.23361034]
[1736361340231,7.6323,195.34,195.22,12.806]
[1736361340232,7.6323,195.34,195.25,0.76791522]
[1736361340426,7.6323,195.34,195.25,46.00152556]
[1736361340913,7.6323,195.34,195.26,25.23361034]
[1736361341232,7.6323,195.34,195.27,0.76784258]
[1736361341529,7.6323,195.34,195.25,0.76784689]
[1736361342415,7.6323,195.34,195.23,25.23361034]
[1736361342627,7.6323,195.34,195.22,4.04790719]
[1736361343611,23.776884,195.33,195.2,25.23361034]
[1736361343811,7.92756591,195.32,195.2,25.23361034]
[1736361344561,32.98424991,195.33,195.21,0.76804563]
[1736361344748,33.44028262,195.33,195.21,26.00165597]
[1736361345250,7.92756591,195.29,195.22,25.23361034]
[1736361345407,7.92756591,195.29,195.25,25.23361034]
[1736361345735,7.92756591,195.29,195.23,58.80649203]
[1736361345956,7.92756591,195.31,195.24,25.23361034]
[1736361346159,7.92756591,195.31,195.25,0.76791086]
[1736361346530,7.92756591,195.32,195.25,0.76791086]
[1736361347658,7.92756591,195.32,195.25,38.8052212]
[1736361347871,7.92756591,195.32,195.29,25.23361034]
[1736361348045,7.92756591,195.32,195.3,26.00138287]
[1736361348866,7.92756591,195.35,195.31,25.23361034]
[1736361349658,7.5641,195.39,195.31,25.23361034]
[1736361351271,7.5641,195.39,195.31,20.0]
[1736361351560,7.5641,195.39,195.28,41.31511034]
[1736361351727,7.5641,195.39,195.28,16.0815]
[1736361352740,7.5641,195.39,195.28,41.31511034]
[1736361353258,7.5641,195.39,195.28,16.0815]
[1736361353454,7.5641,195.39,195.29,25.23361034]
[1736361353756,8.39443271,195.43,195.31,25.23361034]
[1736361353928,0.45603271,195.42,195.31,25.23361034]
[1736361354124,24.23291671,195.42,195.3,38.03441034]
[1736361354360,24.23291671,195.42,195.3,38.80212485]
[1736361356261,7.9384,195.43,195.33,25.23361034]
[1736361356636,7.9384,195.43,195.34,25.23361034]
[1736361356855,7.9384,195.43,195.33,46.001198]
[1736361357226,7.9384,195.43,195.33,20.76758766]
[1736361357432,0.45603271,195.42,195.31,25.23361034]
[1736361357632,7.9384,195.43,195.31,25.23361034]
[1736361357833,7.9384,195.43,195.32,25.23361034]
[1736361359585,7.9384,195.43,195.33,26.00121572]
[1736361359738,7.9384,195.43,195.34,25.23361034]
[1736361360343,2.56564444,195.45,195.35,45.23361034]
[1736361360536,7.5465,195.47,195.39,25.23361034]
[1736361360768,7.92756591,195.5,195.41,25.23361034]
[1736361360984,7.92756591,195.5,195.4,26.00095206]
[1736361361146,7.92756591,195.5,195.41,25.23361034]
[1736361361348,7.92756591,195.5,195.4,0.76734172]
[1736361361349,7.92756591,195.5,195.45,15.72739404]
[1736361361762,31.58159492,195.54,195.43,12.7922]
[1736361361763,7.92756591,195.54,195.46,15.72739404]
[1736361362584,7.92756591,195.54,195.47,15.72739404]
[1736361362788,7.92756591,195.54,195.48,15.72739404]
[1736361362953,7.5517,195.56,195.48,15.72739404]
[1736361363270,20.0,195.57,195.48,15.72739404]
[1736361363473,20.0,195.57,195.48,25.153604]
[1736361363653,20.0,195.57,195.49,25.153604]
[1736361363855,20.0,195.57,195.48,25.153604]
[1736361364083,20.0,195.57,195.47,25.153604]
[1736361364251,3.02167715,195.59,195.47,25.153604]
[1736361364455,3.02167715,195.59,195.46,49.20070027]
[1736361365584,7.5517,195.63,195.54,25.153604]
[1736361365950,7.5517,195.68,195.56,25.153604]
[1736361366269,7.5517,195.68,195.57,25.92028361]
[1736361367155,7.5517,195.68,195.58,25.153604]
[1736361367351,0.45603271,195.67,195.56,25.153604]
[1736361367771,7.5517,195.68,195.57,25.153604]
[1736361368077,7.5517,195.68,195.52,7.9836]
[1736361368078,20.0,195.65,195.54,25.92022454]
[1736361368411,23.776884,195.6,195.48,3.28]
[1736361368703,0.45603271,195.59,195.48,28.433604]
[1736361368919,20.0,195.64,195.5,25.153604]
[1736361369211,20.0,195.64,195.55,25.153604]
[1736361369375,7.5517,195.68,195.56,25.9203531]
[1736361369580,7.5517,195.68,195.58,25.153604]
[1736361369799,7.5517,195.68,195.56,0.7667491]
[1736361369800,7.5517,195.68,195.56,25.9203531]
[1736361370003,20.0,195.65,195.53,45.153604]
[1736361370208,0.45603271,195.64,195.53,45.153604]
[1736361370510,0.45603271,195.64,195.52,25.153604]
[1736361372212,0.45603271,195.64,195.53,25.153604]
[1736361372805,20.0,195.61,195.51,29.20026999]
[1736361372986,0.45603271,195.6,195.46,33.105004]
[1736361373181,24.23291671,195.6,195.46,33.105004]
[1736361373495,24.23291671,195.6,195.48,25.153604]
[1736361373887,25.51101671,195.6,195.49,20.0]
[1736361374082,25.51101671,195.6,195.46,33.87207313]
[1736361374083,27.5517,195.57,195.45,25.153604]
[1736361374303,0.45603271,195.56,195.44,30.459104]
[1736361374506,27.5517,195.57,195.46,25.153604]
[1736361374809,27.5517,195.57,195.47,25.153604]
[1736361375000,27.5517,195.57,195.46,25.92065918]
[1736361375203,24.23291671,195.56,195.43,25.153604]
[1736361375393,24.23291671,195.56,195.46,20.0]
[1736361375586,24.23291671,195.56,195.42,25.153604]
[1736361375783,20.0,195.53,195.42,25.153604]
[1736361376093,20.0,195.53,195.43,25.153604]
[1736361376403,7.5517,195.57,195.46,25.153604]
[1736361376600,7.5517,195.57,195.48,25.153604]
[1736361376797,7.5517,195.57,195.47,25.153604]
[1736361377013,7.5517,195.57,195.49,30.69]
[1736361377191,7.5517,195.57,195.47,25.153604]
[1736361377391,0.45603271,195.56,195.44,25.92055505]
[1736361377593,0.45603271,195.56,195.43,25.153604]
[1736361377795,0.45603271,195.56,195.44,25.153604]
[1736361378002,7.5517,195.57,195.44,25.153604]
[1736361378203,7.5517,195.57,195.46,25.153604]
[1736361379696,7.5517,195.57,195.47,0.76709277]
[1736361379916,7.5517,195.57,195.47,25.92069677]
[1736361380432,7.5517,195.57,195.46,25.153604]
[1736361380595,7.5517,195.57,195.45,45.153604]
[1736361381293,0.45603271,195.56,195.45,20.0]
[1736361381505,24.23291671,195.56,195.45,20.0]
[1736361381710,25.51121671,195.56,195.42,45.153604]
[1736361381922,20.0,195.53,195.39,57.730904]
[1736361382096,24.23291671,195.52,195.39,27.040904]
[1736361382303,24.23291671,195.52,195.37,36.282704]
[1736361382507,24.23291671,195.52,195.4,20.0]
[1736361383432,7.5517,195.47,195.36,25.153604]
[1736361383729,7.5517,195.47,195.35,4.02749759]
[1736361383935,20.0,195.49,195.39,25.153604]
[1736361384610,20.0,195.49,195.4,25.153604]
[1736361384813,7.9229,195.52,195.41,25.92091782]
[1736361385104,0.45603271,195.51,195.4,25.153604]
[1736361385309,24.23291671,195.51,195.38,25.153604]
[1736361385536,24.23291671,195.51,195.38,25.92095708]
[1736361385733,20.0,195.49,195.38,25.153604]
[1736361386032,0.45603271,195.48,195.37,25.153604]
[1736361386234,20.0,195.49,195.39,25.153604]
[1736361386938,20.0,195.49,195.38,25.153604]
[1736361387103,20.0,195.49,195.37,37.949804]
[1736361387300,20.0,195.49,195.39,20.0]
[1736361387840,0.45603271,195.51,195.41,25.153604]
[1736361388012,7.9229,195.52,195.41,25.153604]
[1736361388336,7.9229,195.52,195.42,25.153604]
[1736361388821,7.9229,195.52,195.41,25.153604]
[1736361389333,7.9229,195.52,195.42,25.153604]
[1736361389553,7.9229,195.52,195.43,25.153604]
[1736361389834,7.5517,195.52,195.43,25.153604]
[1736361390244,1.6496,195.56,195.45,25.153604]
[1736361390245,0.3712,195.56,195.45,25.153604]
[1736361390404,0.82723271,195.56,195.45,25.153604]
[1736361390609,0.3712,195.56,195.47,25.153604]
[1736361390838,0.3712,195.56,195.45,20.0]
[1736361391141,0.45603271,195.55,195.44,3.26]
[1736361391437,20.0,195.53,195.44,3.26]
[1736361392210,0.45603271,195.52,195.4,25.153604]
[1736361393010,20.0,195.49,195.38,3.26]
[1736361393208,0.45603271,195.48,195.38,3.26]
[1736361393418,0.45603271,195.51,195.4,25.153604]
[1736361393634,20.45603271,195.52,195.4,25.153604]
[1736361393837,20.45603271,195.52,195.4,20.0]
[1736361394020,23.776884,195.51,195.36,25.153604]
[1736361394346,20.0,195.48,195.36,25.153604]
[1736361394819,0.45603271,195.47,195.38,20.0]
[1736361395024,0.45603271,195.47,195.37,45.153604]
[1736361395211,0.45603271,195.47,195.38,20.0]
[1736361395623,0.45603271,195.47,195.37,20.0]
[1736361395838,0.45603271,195.47,195.34,30.387204]
[1736361396037,7.91529901,195.45,195.33,25.153604]
[1736361396212,0.45603271,195.44,195.33,25.153604]
[1736361396633,7.91529901,195.45,195.36,20.0]
[1736361396811,7.91529901,195.44,195.36,20.0]
[1736361397016,7.91529901,195.44,195.34,25.153604]
[1736361397647,7.91529901,195.44,195.34,37.951704]
[1736361397823,7.91529901,195.39,195.34,13.02761196]
[1736361398225,7.91529901,195.39,195.33,25.153604]
[1736361398516,7.91529901,195.39,195.34,45.153604]
[1736361398922,15.83059803,195.42,195.34,20.0]
[1736361398923,7.91529901,195.42,195.34,20.0]
[1736361399438,7.91529901,195.42,195.32,0.76754017]
[1736361399649,7.91529901,195.43,195.31,103.61534359]
[1736361400153,7.91529901,195.43,195.31,100.35534359]
[1736361400440,0.45603271,195.42,195.31,62.40183959]
[1736361400642,7.91529901,195.41,195.31,62.40183959]
[1736361400818,7.5395,195.39,195.31,62.40183959]
[1736361401018,0.45603271,195.38,195.31,62.40183959]
[1736361401422,7.91529901,195.36,195.28,20.0]
[1736361401649,7.91529901,195.36,195.28,25.92147267]
[1736361401839,7.91529901,195.37,195.29,25.153604]
[1736361402327,15.91083172,195.39,195.29,25.153604]
[1736361402521,15.45479901,195.39,195.3,25.153604]
[1736361403224,15.45479901,195.39,195.29,37.954804]
[1736361403427,15.45479901,195.39,195.3,25.153604]
[1736361403630,15.45479901,195.39,195.29,12.8012]
[1736361403631,15.45479901,195.39,195.31,25.153604]
[1736361403847,7.91529901,195.4,195.34,25.153604]
[1736361404221,7.91529901,195.4,195.36,25.153604]
[1736361404420,7.91529901,195.4,195.35,25.153604]
[1736361404618,7.91529901,195.43,195.37,25.153604]
[1736361404965,7.91529901,195.43,195.39,25.153604]
[1736361405125,7.91529901,195.46,195.39,25.153604]
[1736361405747,15.45479901,195.49,195.4,45.153604]
[1736361405959,7.91529901,195.49,195.42,25.153604]
[1736361406166,7.91529901,195.49,195.44,25.153604]
[1736361406338,7.91529901,195.49,195.43,25.153604]
[1736361406735,0.45603271,195.51,195.41,25.153604]
[1736361406936,7.5308,195.53,195.42,25.92095178]
[1736361407158,7.5308,195.53,195.43,25.153604]
[1736361407947,7.5308,195.53,195.42,38.71385178]
[1736361408135,0.45603271,195.52,195.41,25.153604]
[1736361408338,0.45603271,195.52,195.44,20.0]
[1736361408541,7.5308,195.53,195.44,20.0]
[1736361411374,7.5308,195.53,195.42,25.153604]
[1736361411562,7.5308,195.53,195.44,20.0]
[1736361412156,7.5308,195.53,195.42,25.92085469]
[1736361412971,7.5308,195.53,195.44,20.0]
[1736361413871,7.5308,195.53,195.41,12.7931]
[1736361414890,0.45603271,195.52,195.41,12.7931]
[1736361416448,24.23291671,195.52,195.39,3.26]
[1736361416680,20.0,195.49,195.39,3.26]
[1736361416860,0.45603271,195.48,195.39,3.26]
[1736361417050,0.45603271,195.48,195.37,12.7956]
[1736361418477,24.23291671,195.48,195.37,20.0]
[1736361419552,0.3682,195.45,195.34,12.798]
[1736361419753,0.82423271,195.45,195.34,37.951604]
[1736361420083,7.91529901,195.46,195.36,37.950404]
[1736361420257,7.91529901,195.46,195.39,45.153604]
[1736361420596,7.91529901,195.47,195.4,25.153604]
[1736361420764,7.91529901,195.47,195.42,25.153604]
[1736361420965,7.91529901,195.47,195.44,25.153604]
[1736361421285,7.91529901,195.47,195.44,7.35812941]
[1736361421671,7.91529901,195.5,195.43,25.92085008]
[1736361422159,7.91529901,195.5,195.45,25.153604]
[1736361422362,7.91529901,195.51,195.48,20.0]
[1736361422953,7.91529901,195.54,195.48,20.0]
[1736361423660,7.91529901,195.54,195.48,25.153604]
[1736361423849,31.66119606,195.59,195.47,45.153604]
[1736361423850,7.91529901,195.53,195.47,45.153604]
[1736361424078,7.91529901,195.53,195.48,25.92064635]
[1736361424455,7.91529901,195.54,195.48,25.92064635]
[1736361424665,7.91529901,195.55,195.48,25.92064635]
[1736361425077,7.91529901,195.55,195.5,25.153604]
[1736361425264,7.91529901,195.55,195.51,25.153604]
[1736361425471,7.91529901,195.55,195.51,25.92052895]
[1736361425872,7.91529901,195.57,195.48,14.7813]
[1736361426169,7.91529901,195.57,195.46,25.153604]
[1736361426375,24.23291671,195.56,195.43,1.9659]
[1736361426592,24.145084,195.55,195.43,1.9659]
[1736361426759,24.145084,195.55,195.41,46.8134]
[1736361426760,0.45603271,195.54,195.41,68.707004]
[1736361427089,0.45603271,195.54,195.42,25.153604]
[1736361427090,7.91529901,195.52,195.42,25.153604]
[1736361427270,7.91529901,195.5,195.42,0.76719877]
[1736361427472,7.91529901,195.5,195.44,20.0]
[1736361427773,7.91529901,195.5,195.4,3.26]
[1736361427956,7.91529901,195.49,195.4,3.26]
[1736361428163,7.91529901,195.49,195.41,20.0]
[1736361428481,7.91529901,195.47,195.4,3.26]
[1736361428693,7.91529901,195.47,195.42,20.0]
[1736361429982,7.91529901,195.46,195.41,20.0]
[1736361430561,7.91529901,195.47,195.41,20.0]
[1736361430892,7.91529901,195.46,195.41,20.0]
[1736361431079,7.91529901,195.46,195.4,3.26]
[1736361431600,7.91529901,195.46,195.4,16.0538]
[1736361431772,7.91529901,195.43,195.4,16.0538]
[1736361432488,7.91529901,195.44,195.4,16.0538]
[1736361433294,7.91529901,195.44,195.4,12.7938]
[1736361433462,7.91529901,195.44,195.37,16.0562]
[1736361433795,8.37133172,195.44,195.31,25.153604]
[1736361434087,7.91529901,195.36,195.34,20.0]
[1736361434587,7.91529901,195.36,195.35,20.0]
[1736361434768,7.91529901,195.36,195.34,20.0]
[1736361434769,7.91529901,195.36,195.31,37.953504]
[1736361434968,7.91529901,195.36,195.34,20.0]
[1736361435186,7.91529901,195.35,195.34,20.0]
[1736361435489,7.91529901,195.35,195.31,12.7999]
[1736361435892,15.83059803,195.36,195.31,12.7999]
[1736361436185,15.83059803,195.38,195.31,12.7999]
[1736361436373,15.83059803,195.38,195.33,25.153604]
[1736361436575,8.01104695,195.36,195.31,37.953504]
[1736361437292,8.01104695,195.36,195.32,25.153604]
[1736361437468,8.01104695,195.34,195.33,12.7988]
[1736361437787,8.01104695,195.36,195.33,12.7988]
[1736361438493,8.01104695,195.36,195.35,57.951104]
[1736361438661,5.42654695,195.37,195.35,57.951104]
[1736361438857,5.42654695,195.37,195.36,25.153604]
[1736361439592,15.83059803,195.44,195.36,25.153604]
[1736361440180,47.49179409,195.45,195.35,57.951104]
[1736361440367,16.28663074,195.44,195.35,32.7975]
[1736361440567,16.28663074,195.44,195.32,3.26]
[1736361440989,15.83059803,195.41,195.31,12.7997]
[1736361441186,15.83059803,195.41,195.31,37.953304]
[1736361441496,15.83059803,195.41,195.32,25.153604]
[1736361441666,15.83059803,195.41,195.31,37.953304]
[1736361441862,16.28663074,195.4,195.31,12.7997]
[1736361442262,23.776884,195.39,195.27,12.8022]
[1736361442493,16.28663074,195.38,195.27,37.955804]
[1736361442700,15.83059803,195.36,195.31,20.0]
[1736361443272,15.83059803,195.36,195.3,20.0]
[1736361443492,15.83059803,195.36,195.31,20.0]
[1736361443695,15.83059803,195.37,195.31,20.0]
[1736361444000,15.83059803,195.37,195.32,25.153604]
[1736361444183,15.83059803,195.37,195.34,25.153604]
[1736361444520,15.83059803,195.41,195.36,25.153604]
[1736361444825,15.83059803,195.43,195.36,25.153604]
[1736361445112,15.83059803,195.43,195.37,25.153604]
[1736361445409,19.36017338,195.45,195.36,25.153604]
[1736361445715,19.36017338,195.45,195.36,37.950304]
[1736361445916,19.36017338,195.45,195.37,25.153604]